bitfinex-derivatives/quotes_ETHF0:USTF0_20251005
["timestamp","ask_amount","ask_price","bid_price","bid_amount"]
[1759696894438,0.5771,4506.0,4505.9,0.223]
[1759696894638,0.8952,4506.0,4505.9,0.45]
[1759696895036,0.8952,4506.0,4505.9,0.227]
[1759696895237,0.8952,4506.0,4505.9,0.45]
[1759696900637,0.7599,4505.8,4505.7,1.58377593]
[1759696900841,0.61730359,4505.8,4505.7,1.80677593]
[1759696901032,0.61730359,4505.8,4505.7,2.03377593]
[1759696901242,0.61730359,4505.8,4505.7,0.45]
[1759696901440,0.61730359,4505.8,4505.7,0.767]
[1759696901638,0.61730359,4505.8,4505.7,1.99037573]
[1759696901844,0.3181,4506.1,4506.0,0.8965]
[1759696902041,0.1237,4507.0,4506.0,1.89557573]
[1759696902241,0.53777034,4506.6,4506.5,0.8965]
[1759696902441,0.53777034,4506.6,4506.5,1.1195]
[1759696905748,0.53777034,4506.6,4506.5,0.9873]
[1759696908452,0.76147034,4506.6,4506.5,0.9873]
[1759696912653,0.76147034,4506.6,4506.5,0.7643]
[1759696912857,0.7787,4506.2,4506.1,1.58628775]
[1759696913054,0.7787,4506.2,4506.1,1.80928775]
[1759696913255,0.7787,4506.2,4506.1,0.223]
[1759696914952,0.39937,4506.1,4506.0,1.58628775]
[1759696915259,0.7787,4506.1,4506.0,0.223]
[1759696916250,0.3389,4505.7,4505.6,4.79408775]
[1759696916456,0.7787,4505.7,4505.6,3.4308]
[1759696917360,3.9865,4505.7,4505.6,0.223]
[1759696918260,1.17812,4505.6,4505.5,0.00179193]
[1759696918457,1.17812,4505.6,4505.5,0.22479193]
[1759696918857,1.17812,4505.6,4505.5,0.00179193]
[1759696919060,1.17812,4505.6,4505.5,0.22479193]
[1759696919256,1.17812,4505.6,4505.5,0.00179193]
[1759696919451,0.5646,4505.0,4504.9,1.58628775]
[1759696919654,0.9035,4505.0,4504.9,0.223]
[1759696919859,0.9035,4505.0,4504.9,0.9658]
[1759696920163,0.5576,4505.0,4504.9,0.9658]
[1759696920350,0.7787,4505.0,4504.9,0.9658]
[1759696920556,0.9035,4505.0,4504.9,0.96756004]
[1759696921357,0.9035,4505.0,4504.9,0.63856004]
[1759696921557,0.9035,4505.0,4504.9,0.41556004]
[1759696921862,0.9035,4505.0,4504.9,0.63856004]
[1759696923156,0.9035,4505.0,4504.9,0.96756004]
[1759696923658,0.7787,4505.0,4504.9,0.96756004]
[1759696926066,0.9035,4505.0,4504.9,0.22476004]
[1759696930473,0.9035,4505.0,4504.9,0.00176004]
[1759696930770,0.9035,4505.0,4504.9,0.22476004]
[1759696932771,0.9035,4505.0,4504.9,0.00176004]
[1759696932968,0.3389,4505.4,4505.1,0.39945]
[1759696933271,0.5576,4505.4,4505.3,1.74587573]
[1759696937079,0.5576,4505.4,4505.3,0.7428]
[1759696937283,0.5576,4505.7,4505.6,0.4138]
[1759696937477,0.5576,4505.7,4505.6,0.9658]
[1759696938078,0.7787,4505.7,4505.6,0.9658]
[1759696944872,0.5576,4505.7,4505.6,0.9658]
[1759696945474,0.7764,4505.7,4505.6,0.9658]
[1759696945774,0.7764,4505.7,4505.6,0.6368]
[1759696949987,0.7764,4505.7,4505.6,0.223]
[1759696950483,0.7764,4505.7,4505.6,0.4504]
[1759696953783,0.7764,4505.7,4505.6,0.7908]
[1759696955686,0.7764,4505.7,4505.6,0.4504]
[1759696955986,0.7764,4505.7,4505.6,0.7908]
[1759696957885,0.7764,4505.7,4505.6,0.4504]
[1759696958085,0.7764,4505.7,4505.6,0.7908]
[1759696960289,0.7764,4505.7,4505.6,1.0092]
[1759696964487,0.7764,4505.7,4505.6,0.6688]
[1759696965082,0.5579,4505.5,4505.4,1.58628775]
[1759696965287,0.7459,4505.3,4505.2,1.58628775]
[1759696965501,0.38515019,4505.3,4505.2,2.01548775]
[1759696965799,0.38515019,4505.3,4505.2,0.7696]
[1759696966890,0.38515019,4505.3,4505.2,0.5466]
[1759696967189,0.38515019,4505.3,4505.2,0.7696]
[1759696967587,0.71305019,4505.3,4505.2,0.988]
[1759696968991,0.71305019,4505.3,4505.2,0.7696]
[1759696971695,0.38515019,4505.3,4505.2,0.988]
[1759696972495,0.71305019,4505.3,4505.2,0.988]
[1759696973789,3.92085019,4505.3,4505.2,0.988]
[1759696974396,3.59295019,4505.3,4505.2,0.988]
[1759696978099,3.92085019,4505.3,4505.2,0.988]
[1759696978599,0.71305019,4505.3,4505.2,0.988]
[1759696979091,3.92085019,4505.3,4505.2,0.988]
[1759696979395,3.59295019,4505.3,4505.2,0.988]
[1759696980495,3.59295019,4505.3,4505.2,0.223]
[1759696980699,3.92085019,4505.3,4505.2,0.223]
[1759696981198,3.92085019,4505.3,4505.2,0.564]
[1759696987801,3.92085019,4505.3,4505.2,0.9967]
[1759696988098,0.39944,4505.4,4505.2,0.6557]
[1759696988397,0.39944,4505.4,4505.3,0.7737]
[1759696988592,0.61454,4505.4,4505.3,0.7737]
[1759696989100,1.16654,4505.4,4505.3,0.7737]
[1759696993200,1.16654,4505.4,4505.3,0.5553]
[1759696993400,1.16654,4505.4,4505.3,0.7737]
[1759696998606,1.16654,4505.4,4505.3,0.7783]
[1759696998808,1.16654,4505.4,4505.3,0.5553]
[1759696999010,2.17019899,4505.4,4505.3,0.7783]
[1759696999803,2.17019899,4505.4,4505.0,0.3199]
[1759696999804,0.39946,4505.1,4505.0,0.3199]
[1759697000107,2.17611899,4505.1,4505.0,0.5429]
[1759697000407,2.17611899,4505.1,4505.0,0.7493]
[1759697008710,2.17611899,4505.1,4505.0,0.5263]
[1759697008918,2.17611899,4505.1,4504.3,6.20900014]
[1759697008919,1.17249,4504.7,4504.6,1.58628775]
[1759697009107,0.4344,4504.4,4504.3,1.58628775]
[1759697009307,0.773,4504.4,4504.3,0.4294]
[1759697009507,0.773,4504.4,4504.3,0.7493]
[1759697009908,0.773,4504.4,4504.3,0.75206435]
[1759697010911,0.6247,4504.7,4504.6,0.739]
[1759697014018,1.15327,4505.0,4504.9,0.2054]
[1759697014207,1.15327,4505.0,4504.9,0.9747]
[1759697016417,1.15327,4505.0,4504.9,0.7693]
[1759697019513,0.214,4505.0,4504.9,0.9747]
[1759697019707,3.2078,4505.1,4505.0,0.8869]
[1759697019909,0.7538,4505.6,4505.5,0.8869]
[1759697020312,1.24731041,4505.6,4505.5,0.8869]
[1759697020504,0.7538,4505.6,4505.5,0.8869]
[1759697021311,1.15322,4505.6,4505.5,0.8869]
[1759697023814,3.2078,4505.7,4505.6,0.7517]
[1759697024319,3.4218,4505.7,4505.6,0.7517]
[1759697026412,3.7552,4505.7,4505.6,0.7517]
[1759697027012,3.9616,4505.7,4505.6,0.9747]
[1759697030419,3.9616,4505.7,4505.6,0.7693]
[1759697031020,0.2199,4506.1,4506.0,0.5689]
[1759697031224,3.2078,4506.2,4506.0,1.57255899]
[1759697031720,3.4277,4506.2,4506.1,0.7503]
[1759697032308,3.2078,4506.2,4506.1,0.7503]
[1759697032515,3.1700432,4506.2,4506.1,6.14967]
[1759697032816,3.2078,4506.9,4506.5,0.8796]
[1759697033010,3.2078,4506.9,4506.5,1.88325899]
[1759697036824,3.2078,4506.9,4506.5,2.10625899]
[1759697037521,0.3993,4507.0,4506.5,2.10625899]
[1759697037921,0.3993,4507.0,4506.5,7.10625899]
[1759697038119,0.3993,4507.0,4506.5,2.10625899]
[1759697038518,3.2078,4507.6,4506.5,2.10625899]
[1759697038724,3.2078,4507.6,4507.5,1.88325899]
[1759697039028,3.2078,4507.6,4507.5,2.10625899]
[1759697039626,3.20945596,4507.6,4507.5,2.10802926]
[1759697040227,3.20945596,4507.6,4507.5,1.10437027]
[1759697041326,0.00165596,4507.6,4507.5,1.10437027]
[1759697041529,0.22155596,4507.6,4507.5,2.10802926]
[1759697041925,0.22155596,4507.6,4506.0,1.13295899]
[1759697041926,1.12373,4507.5,4506.8,0.3107]
[1759697042224,2.16655899,4506.9,4506.8,0.3107]
[1759697042727,1.16297,4506.1,4506.0,0.6553]
[1759697042923,1.16297,4506.1,4506.0,1.10486816]
[1759697046724,0.7636,4506.1,4506.0,1.10486816]
[1759697047028,0.7636,4506.1,4506.0,2.10852715]
[1759697047223,0.4376,4506.1,4506.0,2.10852715]
[1759697053629,0.2199,4506.1,4506.0,2.10852715]
[1759697055534,0.39937,4506.2,4506.1,0.7503]
[1759697057626,0.39937,4506.2,4506.1,0.9733]
[1759697064445,0.39936,4506.3,4506.1,1.37267]
[1759697064736,0.39936,4506.3,4506.2,0.764]
[1759697065335,0.62636,4506.3,4506.2,0.764]
[1759697066240,0.84786,4506.3,4506.2,0.764]
[1759697066441,1.17696,4506.3,4506.2,0.764]
[1759697067740,0.39935,4506.4,4506.2,0.4392]
[1759697067946,0.62635,4506.4,4506.3,0.764]
[1759697069938,0.39935,4506.4,4506.3,0.987]
[1759697070144,0.99817,4507.4,4506.3,0.987]
[1759697070145,0.62628,4507.1,4507.0,0.8987]
[1759697070348,0.62628,4507.1,4507.0,1.1217]
[1759697072148,4.38468,4507.1,4507.0,1.1217]
[1759697076257,4.38468,4507.1,4507.0,0.7627]
[1759697076650,4.38468,4507.1,4507.0,0.5397]
[1759697076850,4.38468,4507.1,4507.0,0.7627]
[1759697080459,4.38468,4507.1,4507.0,0.3248]
[1759697080860,4.38468,4507.1,4507.0,0.775]
[1759697084565,4.38468,4507.1,4507.0,0.552]
[1759697084763,4.38468,4507.1,4507.0,0.775]
[1759697088269,4.87834808,4507.1,4507.0,0.775]
[1759697090266,0.39933,4506.6,4506.5,0.1347]
[1759697090461,1.16495,4506.3,4506.2,0.4335]
[1759697090664,1.16495,4506.3,4506.2,0.6565]
[1759697090864,1.16495,4506.3,4506.2,0.9876]
[1759697091166,0.84235,4506.3,4506.2,0.9876]
[1759697091367,0.62565,4506.3,4506.2,0.9876]
[1759697092270,0.62565,4506.3,4506.2,2.57388775]
[1759697092472,0.62565,4506.3,4506.2,0.9876]
[1759697092674,0.62565,4506.3,4506.2,2.57388775]
[1759697099074,1.16495,4506.3,4506.2,2.57388775]
[1759697099372,1.16495,4506.3,4506.2,2.35088775]
[1759697099569,1.16495,4506.3,4506.2,0.9866]
[1759697101270,0.84235,4506.3,4506.2,0.9866]
[1759697101563,1.16495,4506.3,4506.2,0.9866]
[1759697102375,1.16495,4506.3,4506.2,0.7646]
[1759697102572,1.16495,4506.3,4506.2,0.9866]
[1759697102773,1.16495,4506.3,4506.2,0.7646]
[1759697102965,1.16495,4506.3,4506.2,0.9866]
[1759697103565,1.16495,4506.3,4506.2,0.7646]
[1759697103769,1.16495,4506.3,4506.2,0.9866]
[1759697104075,1.16495,4506.3,4506.2,0.7646]
[1759697104273,1.16495,4506.3,4506.2,0.9866]
[1759697107582,1.16495,4506.3,4506.2,0.7646]
[1759697107879,1.16495,4506.3,4506.2,0.9866]
[1759697110083,0.84235,4506.3,4506.2,0.9866]
[1759697119892,1.15955,4506.3,4506.2,0.9866]
[1759697124893,0.84235,4506.3,4506.2,0.9866]
[1759697125090,3.2078,4506.4,4506.2,0.9866]
[1759697125285,0.5366,4507.4,4507.3,0.21]
[1759697125588,0.39933,4506.6,4506.5,3.8701]
[1759697125787,0.82603,4506.6,4506.5,4.2576]
[1759697127492,1.14323,4506.6,4506.5,4.2576]
[1759697127791,0.82603,4506.6,4506.5,4.2576]
[1759697128997,0.61873,4506.6,4506.5,4.2576]
[1759697131587,0.39933,4506.6,4506.5,4.2576]
[1759697132990,1.31536,4507.4,4506.5,4.2576]
[1759697133299,0.39927,4507.3,4507.2,0.7428]
[1759697133592,0.39927,4507.3,4507.2,0.9648]
[1759697134188,0.61927,4507.3,4507.2,0.9648]
[1759697134389,0.61927,4507.3,4507.2,0.5368]
[1759697134390,1.16117,4507.3,4507.2,0.5368]
[1759697134697,1.16117,4507.3,4507.2,0.7588]
[1759697136095,1.16117,4507.3,4507.2,0.9648]
[1759697136292,0.84027,4507.3,4507.2,0.9648]
[1759697136596,0.61927,4507.3,4507.2,0.9648]
[1759697138894,3.42945596,4507.6,4507.5,0.1326]
[1759697139197,3.82869596,4507.6,4507.5,1.0974]
[1759697139391,0.00165596,4507.6,4507.5,4.3052]
[1759697142292,0.3209,4508.6,4508.0,0.1326]
[1759697142498,1.16105,4508.6,4508.5,0.8754]
[1759697142696,3.2078,4508.7,4508.5,2.17076904]
[1759697142895,3.2078,4508.7,4508.6,0.7428]
[1759697143297,0.3991,4509.2,4509.1,0.414]
[1759697143490,0.40191861,4509.2,4509.1,0.9648]
[1759697143692,0.62191861,4509.2,4509.1,0.9648]
[1759697143892,0.22281861,4509.2,4509.1,0.9648]
[1759697144093,0.00281861,4509.2,4509.1,0.9648]
[1759697144389,0.40191861,4509.2,4509.1,0.9648]
[1759697145695,0.00281861,4509.2,4509.1,0.9648]
[1759697147392,0.76201861,4509.2,4509.1,0.7428]
[1759697147592,0.76201861,4509.2,4509.1,0.9648]
[1759697149305,0.76201861,4509.2,4509.1,0.7428]
[1759697149505,0.76201861,4509.2,4509.1,0.9648]
[1759697150700,0.76201861,4509.2,4509.1,0.7428]
[1759697151007,0.76201861,4509.2,4509.1,0.9648]
[1759697152598,0.76201861,4509.2,4509.1,0.7428]
[1759697152795,0.76201861,4509.2,4509.1,0.9648]
[1759697153603,0.76201861,4509.2,4509.1,0.9632]
[1759697155809,0.44381861,4509.2,4509.1,0.9632]
[1759697157812,0.76201861,4509.2,4509.1,0.9632]
[1759697158797,0.76201861,4509.2,4508.7,0.3082]
[1759697158798,0.39913,4508.8,4508.7,0.3082]
[1759697159002,0.83093,4508.8,4508.7,0.9552]
[1759697159301,1.14913,4508.8,4508.7,0.7332]
[1759697159495,1.14913,4508.8,4508.2,1.00300904]
[1759697159496,1.14918,4508.3,4508.2,0.7332]
[1759697159702,1.14918,4508.3,4508.2,0.9552]
[1759697161996,1.14918,4508.3,4508.2,0.5302]
[1759697162204,0.99794,4508.4,4507.7,0.3082]
[1759697162508,0.83101,4507.9,4507.8,0.9552]
[1759697162898,0.61381,4507.9,4507.8,0.9552]
[1759697164506,0.61381,4507.9,4507.8,0.7332]
[1759697164812,1.14921,4507.9,4507.8,0.9552]
[1759697165607,1.14921,4507.9,4507.8,0.7332]
[1759697165802,1.14921,4507.9,4507.8,0.9552]
[1759697166000,0.75,4507.9,4507.8,0.9552]
[1759697167804,0.4318,4507.9,4507.8,0.9552]
[1759697168516,0.75,4507.9,4507.8,0.9552]
[1759697169114,0.39922,4507.8,4507.5,0.1326]
[1759697169328,0.39922,4507.8,4507.0,1.13700904]
[1759697169329,1.43480904,4507.8,4507.6,0.5302]
[1759697169616,0.75,4507.7,4507.6,0.5302]
[1759697170005,1.14923,4507.7,4507.6,0.5302]
[1759697170214,1.14923,4507.7,4507.0,5.13970732]
[1759697170215,1.14928,4507.2,4507.1,0.7332]
[1759697170416,1.14928,4507.2,4507.1,0.9552]
[1759697172010,1.14928,4507.2,4507.1,0.7332]
[1759697172316,1.14928,4507.2,4507.1,0.9552]
[1759697174014,0.83108,4507.2,4507.1,0.9552]
[1759697174210,0.71739,4508.2,4507.8,0.3082]
[1759697174412,0.61379,4508.2,4508.1,0.7332]
[1759697175820,1.14919,4508.2,4508.1,0.7332]
[1759697176319,0.83099,4508.2,4508.1,0.7332]
[1759697178512,1.15529,4508.2,4508.1,0.7332]
[1759697187927,1.15529,4508.2,4508.1,0.5167]
[1759697188627,1.15763,4507.7,4507.6,0.3323]
[1759697188831,0.2186,4507.2,4507.1,0.7603]
[1759697189024,0.94216,4507.5,4507.4,0.428]
[1759697189230,1.15766,4507.5,4507.4,0.7603]
[1759697191924,0.4341,4507.2,4506.8,5.12638775]
[1759697192125,1.07174,4507.5,4506.8,0.5486]
[1759697192126,0.7584,4506.9,4506.8,0.5486]
[1759697192322,0.7584,4506.9,4506.8,0.7706]
[1759697193629,0.7584,4506.9,4506.8,0.9823]
[1759697196232,1.15771,4506.9,4506.8,0.222]
[1759697196431,1.15771,4506.9,4506.8,0.5415]
[1759697196722,1.15771,4506.9,4506.8,0.9699]
[1759697197627,0.7584,4506.9,4506.8,0.9699]
[1759697204131,0.4341,4506.9,4506.8,0.9699]
[1759697204835,0.7443,4506.9,4506.8,0.9699]
[1759697207932,0.7443,4506.9,4506.8,0.7479]
[1759697208130,0.7443,4506.9,4506.3,3.2078]
[1759697208131,0.5353,4506.2,4506.1,0.3094]
[1759697208335,1.15776,4506.2,4506.1,0.3094]
[1759697208630,0.2231,4505.3,4505.2,3.7249]
[1759697208831,0.7145,4505.8,4505.2,4.1598]
[1759697209130,1.1578,4505.8,4505.7,0.2077]
[1759697209340,1.1578,4505.8,4505.7,0.7391]
[1759697209631,1.1578,4505.8,4505.7,0.74086536]
[1759697209632,1.16003961,4505.8,4505.7,0.74086536]
[1759697209831,0.76063961,4505.8,4505.7,0.95376536]
[1759697210038,0.22533961,4505.8,4505.7,0.95376536]
[1759697212233,1.16003961,4505.8,4505.7,0.95376536]
[1759697212836,1.16003961,4505.8,4505.7,0.31116536]
[1759697213040,1.16003961,4505.8,4505.7,0.00176536]
[1759697213840,1.16003961,4505.8,4505.7,0.31116536]
[1759697214040,1.16003961,4505.8,4505.7,0.51886536]
[1759697215338,0.00223961,4505.8,4505.7,0.73176536]
[1759697218146,0.76063961,4505.8,4505.7,0.73176536]
[1759697220247,0.76063961,4505.8,4505.7,0.95376536]
[1759697225653,3.96843961,4505.8,4505.7,0.95376536]
[1759697226252,3.96843961,4505.8,4505.7,0.00176536]
[1759697226546,1.15784,4505.4,4505.3,0.5171]
[1759697227453,1.15784,4505.4,4505.3,0.51930718]
[1759697227756,0.7584,4505.4,4505.3,0.73220718]
[1759697228050,0.4433,4505.4,4505.3,0.73220718]
[1759697232455,0.7584,4505.4,4505.3,0.73220718]
[1759697233155,0.4433,4505.4,4505.3,0.73220718]
[1759697233356,0.7584,4505.4,4505.3,0.73220718]
[1759697237350,0.7584,4505.4,4505.3,0.31160718]
[1759697237556,0.7584,4505.4,4505.3,0.00220718]
[1759697237754,0.7584,4505.4,4505.0,0.03240718]
[1759697237954,4.36546,4505.1,4505.0,0.24940718]
[1759697238457,1.1577,4504.8,4504.7,0.439]
[1759697238857,1.1577,4504.8,4504.7,0.44069651]
[1759697239159,0.7582,4504.8,4504.7,0.65599651]
[1759697239859,0.7582,4504.8,4504.7,0.96419651]
[1759697243462,0.7582,4504.8,4504.7,0.74219651]
[1759697243665,0.7582,4504.8,4504.7,0.96419651]
[1759697245453,0.7582,4504.8,4504.7,0.21869651]
[1759697247453,0.538,4504.8,4504.7,0.74219651]
[1759697247658,0.7582,4504.8,4504.7,0.74219651]
[1759697257870,3.966,4504.8,4504.7,0.74219651]
[1759697259370,0.7582,4504.8,4504.7,0.74219651]
[1759697261071,3.966,4504.8,4504.7,0.74219651]
[1759697263175,3.7458,4504.8,4504.7,0.74219651]
[1759697263372,3.2078,4504.8,4504.7,1.74591346]
[1759697263574,3.7358,4504.8,4504.7,0.74219651]
[1759697264072,3.9548,4504.8,4504.7,0.74219651]
[1759697264272,3.9548,4504.8,4504.7,0.21869651]
[1759697264875,3.9548,4504.8,4504.7,0.53919651]
[1759697265571,3.9548,4504.8,4504.7,0.75429651]
[1759697269384,3.9548,4504.8,4504.7,0.00169651]
[1759697269676,4.95851695,4504.8,4504.7,0.22369651]
[1759697270881,0.39951,4504.6,4504.5,0.2078]
[1759697271078,0.81481,4504.6,4504.5,0.2078]
[1759697271580,1.14511,4504.6,4504.5,0.2078]
[1759697271881,1.14511,4504.6,4504.5,0.21029796]
[1759697272784,1.14511,4504.6,4504.5,0.00249796]
[1759697281486,0.72985,4504.1,4504.0,1.58628775]
[1759697281690,0.72985,4504.1,4503.5,2.32334115]
[1759697281691,0.7456,4503.6,4503.5,1.58628775]
[1759697281984,0.8782,4503.5,4503.4,1.58628775]
[1759697282486,4.21151695,4504.1,4503.4,1.58628775]
[1759697282487,3.4128,4504.1,4504.0,0.3437]
[1759697282687,3.4128,4504.1,4504.0,2.10811695]
[1759697282991,3.7431,4504.1,4504.0,2.10811695]
[1759697283189,3.9534,4504.1,4504.0,1.97221695]
[1759697286491,3.7431,4504.1,4504.0,2.10811695]
[1759697288086,3.7431,4504.1,4504.0,1.97221695]
[1759697288292,3.9534,4504.1,4504.0,1.97221695]
[1759697289695,0.8782,4503.5,4503.4,0.002833]
[1759697289896,4.086,4503.5,4503.4,0.002833]
[1759697292399,4.086,4503.5,4503.4,0.224833]
[1759697292594,4.086,4503.5,4503.4,0.971333]
[1759697292899,0.7456,4503.5,4503.4,0.971333]
[1759697297500,0.8798,4503.5,4503.4,0.536433]
[1759697297700,0.8798,4503.5,4503.4,0.758433]
[1759697299812,0.8798,4503.5,4503.4,0.971833]
[1759697303908,0.8798,4503.5,4503.4,0.002833]
[1759697304209,0.8798,4503.5,4503.4,0.224833]
[1759697304508,0.8798,4503.5,4503.4,0.768133]
[1759697305003,0.8798,4503.5,4503.4,0.981533]
[1759697305208,0.7456,4503.5,4503.4,0.981533]
[1759697314416,0.8744,4503.5,4503.4,0.981533]
[1759697315116,0.8744,4503.5,4503.4,0.759533]
[1759697315616,0.8744,4503.5,4503.4,0.981533]
[1759697316019,0.7456,4503.5,4503.4,0.981533]
[1759697317921,0.8744,4503.5,4503.4,0.981533]
[1759697319618,0.8744,4503.5,4503.4,0.778533]
[1759697319823,0.8744,4503.5,4503.4,0.988533]
[1759697321025,0.7456,4503.5,4503.4,0.988533]
[1759697323028,3.2078,4503.8,4503.4,0.988533]
[1759697323029,3.2078,4503.8,4503.6,0.7637]
[1759697323220,3.2078,4503.8,4503.7,0.7637]
[1759697323418,3.2078,4504.3,4503.7,0.7637]
[1759697323633,4.03604,4504.3,4504.2,0.2239]
[1759697323928,0.39955,4504.1,4504.0,0.3298]
[1759697324228,1.65806755,4504.1,4504.0,0.4459]
[1759697324429,1.16745,4504.1,4504.0,0.4459]
[1759697325130,1.16745,4504.1,4504.0,0.222]
[1759697329132,1.16745,4504.1,4504.0,0.4459]
[1759697330535,1.16745,4504.1,4504.0,0.222]
[1759697331031,0.7679,4504.1,4504.0,0.641]
[1759697331232,0.1303,4505.0,4504.3,0.316]
[1759697331233,3.518,4504.8,4504.3,0.316]
[1759697331539,3.9552,4504.8,4504.7,0.735]
[1759697331737,3.9552,4504.8,4504.7,0.957]
[1759697334634,3.2078,4505.3,4505.2,0.735]
[1759697334833,3.9552,4505.3,4505.2,0.957]
[1759697336239,3.7424,4505.3,4505.2,0.957]
[1759697336434,3.7424,4505.3,4505.2,1.13159675]
[1759697338741,0.5346,4505.3,4505.2,1.13159675]
[1759697338940,0.43943961,4505.8,4505.7,0.2114]
[1759697339141,0.74963961,4505.8,4505.7,0.7494]
[1759697339342,0.74963961,4505.8,4505.7,0.4334]
[1759697340342,0.74963961,4505.8,4505.7,0.222]
[1759697341739,0.52523961,4505.8,4504.8,3.5238]
[1759697341940,0.7474,4504.9,4504.3,4.79408775]
[1759697342134,0.1256,4505.0,4504.4,0.7494]
[1759697342135,0.5628,4504.5,4504.4,0.7494]
[1759697342338,0.873,4504.5,4504.4,0.957]
[1759697342539,0.7474,4504.5,4504.4,0.957]
[1759697343136,0.873,4504.5,4504.3,3.2078]
[1759697343336,0.7474,4504.4,4504.3,3.2078]
[1759697343544,0.7474,4504.4,4504.3,3.6412]
[1759697343747,0.7474,4503.9,4503.8,3.2078]
[1759697344043,0.7474,4503.9,4503.8,3.9572]
[1759697344846,0.7474,4503.9,4503.8,3.6412]
[1759697345047,0.7474,4503.9,4503.8,3.9572]
[1759697345248,0.7474,4503.9,4503.8,4.1648]
[1759697346148,0.7474,4503.9,4503.8,3.8488]
[1759697346645,0.7474,4503.9,4503.8,4.1648]
[1759697347148,0.7474,4503.9,4503.8,0.957]
[1759697348546,0.7474,4503.9,4503.8,0.735]
[1759697348747,0.7474,4503.9,4503.8,0.957]
[1759697350738,0.7474,4503.9,4503.8,0.735]
[1759697350947,0.7474,4503.9,4503.8,0.957]
[1759697353354,1.14697,4503.9,4503.8,0.735]
[1759697353650,1.14697,4503.9,4503.8,0.957]
[1759697354453,0.7474,4503.9,4503.8,0.957]
[1759697360951,0.5346,4503.9,4503.8,0.957]
[1759697362554,0.7526,4503.9,4503.8,0.957]
[1759697363152,0.7526,4503.9,4503.8,1.96096084]
[1759697366757,0.7526,4503.9,4503.8,0.957]
[1759697371554,0.7526,4503.9,4503.8,2.54328775]
[1759697371959,0.5303,4503.9,4503.8,2.54328775]
[1759697372558,0.7483,4503.9,4503.8,2.54328775]
[1759697373162,0.7483,4503.9,4503.8,0.957]
[1759697375367,0.5303,4503.9,4503.8,0.957]
[1759697376160,0.7522,4503.9,4503.8,0.957]
[1759697376568,0.7522,4503.9,4503.8,0.641]
[1759697376864,0.7522,4503.9,4503.8,0.9562]
[1759697379060,0.39953,4504.4,4503.8,0.9562]
[1759697379261,1.17564,4504.3,4504.2,0.7521]
[1759697379459,1.17564,4504.3,4504.2,0.9741]
[1759697390274,0.7761,4504.3,4504.2,0.9741]
[1759697401584,0.7761,4504.3,4504.2,0.2165]
[1759697401789,0.97236,4504.0,4503.9,1.79986956]
[1759697401989,1.28026,4504.0,4503.9,2.02186956]
[1759697402292,2.28422084,4504.0,4503.9,0.222]
[1759697402483,0.83848,4503.8,4503.7,1.79986956]
[1759697402791,1.14638,4503.8,4503.7,0.7543]
[1759697404180,1.14638,4503.8,4503.7,0.5323]
[1759697404383,1.14638,4503.8,4503.7,0.9651]
[1759697405085,0.7468,4503.8,4503.7,0.9651]
[1759697406389,0.39955,4504.2,4504.1,0.7431]
[1759697406588,0.39955,4504.2,4504.1,0.9651]
[1759697406891,0.70745,4504.2,4504.1,0.9651]
[1759697407290,0.92575,4504.2,4504.1,0.9651]
[1759697407994,1.14635,4504.2,4504.1,0.9651]
[1759697409390,1.14635,4504.2,4504.1,0.8472]
[1759697416599,0.7468,4504.2,4504.1,0.8472]
[1759697416800,0.5262,4504.2,4504.1,0.8472]
[1759697417998,0.7468,4504.2,4504.1,0.8472]
[1759697418401,0.7468,4504.2,4504.1,0.5261]
[1759697418600,0.7468,4504.2,4504.1,0.3041]
[1759697418799,0.7468,4504.2,4504.1,0.5261]
[1759697422897,0.7468,4504.2,4504.1,0.3153]
[1759697423093,0.94004,4504.2,4504.1,0.222]
[1759697423294,1.15454,4504.2,4504.1,0.222]
[1759697424405,0.39958,4503.9,4503.7,0.318]
[1759697424605,0.92918,4503.9,4503.8,0.9607]
[1759697426105,1.15458,4503.9,4503.8,0.9607]
[1759697428501,1.15458,4503.9,4503.8,0.7387]
[1759697428709,1.15458,4503.9,4503.8,0.9607]
[1759697432204,1.15458,4503.9,4503.8,0.2066]
[1759697432402,0.83949,4503.6,4503.5,2.11326956]
[1759697432704,1.16599,4503.6,4503.5,2.54936956]
[1759697434508,1.16599,4503.6,4503.5,2.00936956]
[1759697434704,1.16599,4503.6,4503.5,2.23136956]
[1759697435404,1.16599,4503.6,4503.5,2.57136956]
[1759697436613,0.7664,4503.6,4503.5,2.57136956]
[1759697439305,0.7664,4503.6,4503.5,2.34936956]
[1759697439510,0.7664,4503.6,4503.5,2.57136956]
[1759697441601,0.7664,4503.6,4503.5,0.2066]
[1759697441803,1.2899,4503.5,4503.4,0.002833]
[1759697442008,0.62474,4503.1,4503.0,2.34526956]
[1759697442210,0.95124,4503.1,4503.0,2.56726956]
[1759697443216,0.95124,4503.1,4503.0,2.56965109]
[1759697443919,0.5516,4503.1,4503.0,2.56965109]
[1759697444314,0.3265,4503.1,4503.0,2.56965109]
[1759697445114,0.3265,4503.1,4503.0,0.98098153]
[1759697450122,0.5516,4503.1,4503.0,0.98098153]
[1759697459526,3.2078,4503.4,4503.0,1.11348153]
[1759697459730,3.2078,4503.4,4503.3,0.7627]
[1759697460033,3.2078,4503.4,4503.3,0.9847]
[1759697461834,0.3144,4503.5,4503.4,0.7627]
[1759697462027,0.7472,4503.5,4503.4,0.7627]
[1759697462227,0.7472,4503.5,4503.3,0.222]
[1759697462228,0.83241,4503.4,4503.3,0.222]
[1759697462425,0.83241,4503.4,4503.3,0.4385]
[1759697462426,1.14681,4503.4,4503.3,0.4385]